[Event "*** Titled Tuesday Blitz"]
[Site "Chess.com"]
[Date "2020.04.14"]
[Round "3"]
[White "Oleg_Papayan"]
[Black "Monmoransy"]
[Result "0-1"]
[WhiteElo "2386"]
[BlackElo "2615"]
[TimeControl "180+1"]
[EndTime "10:26:28 PDT"]
[Termination "Monmoransy won by resignation"]

1. e4 {[%clk 0:02:59]} 1... c5 {[%clk 0:02:58.9]} 2. d4 {[%clk 0:02:57.7]} 2...
cxd4 {[%clk 0:02:58.3]} 3. c3 {[%clk 0:02:58.3]} 3... Nf6 {[%clk 0:02:56.6]} 4.
e5 {[%clk 0:02:57.9]} 4... Nd5 {[%clk 0:02:56.9]} 5. cxd4 {[%clk 0:02:58.6]}
5... d6 {[%clk 0:02:57.1]} 6. Nf3 {[%clk 0:02:57.6]} 6... Nc6 {[%clk 0:02:57.1]}
7. Be2 {[%clk 0:02:54]} 7... g6 {[%clk 0:02:54.3]} 8. O-O {[%clk 0:02:53.6]}
8... Bg7 {[%clk 0:02:54.3]} 9. Re1 {[%clk 0:02:33.4]} 9... O-O {[%clk
0:02:53.5]} 10. h3 {[%clk 0:02:28]} 10... dxe5 {[%clk 0:02:52.9]} 11. dxe5
{[%clk 0:02:28.9]} 11... Bf5 {[%clk 0:02:52.6]} 12. Na3 {[%clk 0:02:22.6]} 12...
Nb6 {[%clk 0:02:41.1]} 13. Bf4 {[%clk 0:02:18.1]} 13... Qxd1 {[%clk 0:02:24.3]}
14. Raxd1 {[%clk 0:02:18.1]} 14... Rfd8 {[%clk 0:02:22]} 15. Nc4 {[%clk
0:01:44.4]} 15... Nd5 {[%clk 0:02:11.1]} 16. Bg3 {[%clk 0:01:28.1]} 16... Ndb4
{[%clk 0:02:10.7]} 17. a3 {[%clk 0:01:17.7]} 17... Nc2 {[%clk 0:02:08.2]} 18.
Rf1 {[%clk 0:01:18.2]} 18... N2d4 {[%clk 0:02:06.7]} 19. Nxd4 {[%clk 0:01:18.5]}
19... Nxd4 {[%clk 0:02:05.4]} 20. Bg4 {[%clk 0:01:10.8]} 20... Bxg4 {[%clk
0:01:58.2]} 21. hxg4 {[%clk 0:01:11.7]} 21... Rac8 {[%clk 0:01:56.4]} 22. Ne3
{[%clk 0:00:58.1]} 22... Ne2+ {[%clk 0:01:53.1]} 23. Kh2 {[%clk 0:00:58.5]}
23... Nxg3 {[%clk 0:01:52.4]} 24. fxg3 {[%clk 0:00:58.4]} 24... Bxe5 {[%clk
0:01:49.3]} 25. Rxd8+ {[%clk 0:00:54]} 25... Rxd8 {[%clk 0:01:48.3]} 26. Nc4
{[%clk 0:00:54.9]} 26... Bc7 {[%clk 0:01:46.3]} 27. Re1 {[%clk 0:00:32.5]} 27...
e6 {[%clk 0:01:42.6]} 28. b3 {[%clk 0:00:29.2]} 28... Rd3 {[%clk 0:01:38.9]} 29.
Re3 {[%clk 0:00:29.5]} 29... Rxe3 {[%clk 0:01:38.1]} 30. Nxe3 {[%clk 0:00:30.4]}
30... Kf8 {[%clk 0:01:33.5]} 31. g5 {[%clk 0:00:28.2]} 31... Bd8 {[%clk
0:01:31.6]} 0-1

[Event "*** Titled Tuesday Blitz"]
[Site "Chess.com"]
[Date "2020.04.14"]
[Round "3"]
[White "Zavgorodniy_Serg"]
[Black "JulAnt"]
[Result "1-0"]
[WhiteElo "2728"]
[BlackElo "2449"]
[TimeControl "180+1"]
[EndTime "10:26:31 PDT"]
[Termination "Zavgorodniy_Serg won by resignation"]

1. e4 {[%clk 0:02:59.6]} 1... c5 {[%clk 0:02:59.4]} 2. Nf3 {[%clk 0:02:59.1]}
2... e6 {[%clk 0:02:59.9]} 3. b3 {[%clk 0:02:58.7]} 3... Nf6 {[%clk 0:02:57.2]}
4. e5 {[%clk 0:02:57.2]} 4... Nd5 {[%clk 0:02:57.2]} 5. Bb2 {[%clk 0:02:55.8]}
5... g6 {[%clk 0:02:57.2]} 6. c4 {[%clk 0:02:44.7]} 6... Nb6 {[%clk 0:02:56.2]}
7. d4 {[%clk 0:02:42.1]} 7... cxd4 {[%clk 0:02:53.3]} 8. Qxd4 {[%clk 0:02:43]}
8... Nc6 {[%clk 0:02:51.1]} 9. Qd2 {[%clk 0:02:35.1]} 9... Bb4 {[%clk
0:02:40.7]} 10. Nc3 {[%clk 0:02:34.3]} 10... O-O {[%clk 0:02:40.6]} 11. O-O-O
{[%clk 0:02:26.6]} 11... a5 {[%clk 0:02:33]} 12. a3 {[%clk 0:02:24.2]} 12... Be7
{[%clk 0:02:32.2]} 13. Ne4 {[%clk 0:02:20.1]} 13... Kg7 {[%clk 0:02:13.5]} 14.
h4 {[%clk 0:02:18]} 14... h6 {[%clk 0:02:05.5]} 15. Kb1 {[%clk 0:02:17.2]} 15...
a4 {[%clk 0:02:05.3]} 16. b4 {[%clk 0:02:16.1]} 16... Qc7 {[%clk 0:01:46.2]} 17.
h5 {[%clk 0:01:37.7]} 17... g5 {[%clk 0:01:44.5]} 18. Nfxg5 {[%clk 0:01:31.1]}
18... Nxe5 {[%clk 0:01:15.3]} 19. Nf3 {[%clk 0:01:14]} 19... f6 {[%clk
0:01:12.9]} 20. Nxe5 {[%clk 0:01:00]} 20... fxe5 {[%clk 0:01:13.8]} 21. Rh3
{[%clk 0:00:59.6]} 21... Rf4 {[%clk 0:00:38.6]} 22. Qxf4 {[%clk 0:00:53.2]} 1-0

[Event "*** Titled Tuesday Blitz"]
[Site "Chess.com"]
[Date "2020.04.14"]
[Round "3"]
[White "MishkaFighter"]
[Black "pedroholly22"]
[Result "1-0"]
[WhiteElo "2572"]
[BlackElo "2347"]
[TimeControl "180+1"]
[EndTime "10:26:32 PDT"]
[Termination "MishkaFighter won by resignation"]

1. Nf3 {[%clk 0:03:00.9]} 1... Nf6 {[%clk 0:02:44.7]} 2. c4 {[%clk 0:02:59.6]}
2... g6 {[%clk 0:02:28.5]} 3. g3 {[%clk 0:02:56.6]} 3... Bg7 {[%clk 0:02:26.3]}
4. Bg2 {[%clk 0:02:57.5]} 4... O-O {[%clk 0:02:20.5]} 5. O-O {[%clk 0:02:58.4]}
5... d6 {[%clk 0:02:20.8]} 6. Nc3 {[%clk 0:02:57.7]} 6... c6 {[%clk 0:02:21.3]}
7. d4 {[%clk 0:02:56.8]} 7... Na6 {[%clk 0:02:17.9]} 8. e4 {[%clk 0:02:56.4]}
8... e5 {[%clk 0:02:14.8]} 9. Re1 {[%clk 0:02:53.8]} 9... exd4 {[%clk
0:02:11.8]} 10. Nxd4 {[%clk 0:02:54.7]} 10... Nc5 {[%clk 0:02:11.6]} 11. h3
{[%clk 0:02:52]} 11... a6 {[%clk 0:02:09.6]} 12. Bf4 {[%clk 0:02:46]} 12... Re8
{[%clk 0:02:07]} 13. Qc2 {[%clk 0:02:43.1]} 13... Nfxe4 {[%clk 0:01:32.6]} 14.
Nxe4 {[%clk 0:02:42]} 14... Bxd4 {[%clk 0:01:30]} 15. Nxd6 {[%clk 0:02:27.4]}
15... Rxe1+ {[%clk 0:01:28.5]} 16. Rxe1 {[%clk 0:02:28.3]} 16... Be6 {[%clk
0:01:27]} 17. Rd1 {[%clk 0:02:28]} 17... Qf6 {[%clk 0:01:22]} 18. b4 {[%clk
0:02:24.4]} 18... Nd7 {[%clk 0:01:21]} 19. Nxb7 {[%clk 0:01:59.6]} 19... Bf5
{[%clk 0:01:20.4]} 20. Qd2 {[%clk 0:01:58.4]} 20... Bc3 {[%clk 0:01:17.5]} 21.
Qd6 {[%clk 0:01:57.9]} 21... Qxd6 {[%clk 0:01:12.5]} 22. Bxd6 {[%clk 0:01:58.8]}
22... Re8 {[%clk 0:01:09.9]} 23. g4 {[%clk 0:01:58.1]} 23... Be6 {[%clk
0:01:08.7]} 24. Bxc6 {[%clk 0:01:58.4]} 24... f5 {[%clk 0:00:50]} 25. Nc5 {[%clk
0:01:55.1]} 25... Nxc5 {[%clk 0:00:41.9]} 26. Bxe8 {[%clk 0:01:53.7]} 26... Ne4
{[%clk 0:00:39.2]} 27. b5 {[%clk 0:01:46.7]} 27... Bxc4 {[%clk 0:00:35.5]} 28.
b6 {[%clk 0:01:45.7]} 28... Nxd6 {[%clk 0:00:32.5]} 29. Rxd6 {[%clk 0:01:45.8]}
29... Be5 {[%clk 0:00:33]} 30. Rd8 {[%clk 0:01:44.1]} 30... Kg7 {[%clk
0:00:23.9]} 31. b7 {[%clk 0:01:43.4]} 31... fxg4 {[%clk 0:00:22.1]} 32. hxg4
{[%clk 0:01:44]} 32... Be6 {[%clk 0:00:21.8]} 33. b8=Q {[%clk 0:01:41]} 1-0

[Event "*** Titled Tuesday Blitz"]
[Site "Chess.com"]
[Date "2020.04.14"]
[Round "3"]
[White "Mimsychess"]
[Black "ReyesBraulio"]
[Result "1-0"]
[WhiteElo "2373"]
[BlackElo "2176"]
[TimeControl "180+1"]
[EndTime "10:26:32 PDT"]
[Termination "Mimsychess won by resignation"]

1. d4 {[%clk 0:01:00.3]} 1... d5 {[%clk 0:02:59.1]} 2. c4 {[%clk 0:00:58.5]}
2... e6 {[%clk 0:02:58.5]} 3. Nf3 {[%clk 0:00:58.2]} 3... f5 {[%clk 0:02:57.9]}
4. Nc3 {[%clk 0:00:55.7]} 4... c6 {[%clk 0:02:57.4]} 5. g3 {[%clk 0:00:52.5]}
5... Nf6 {[%clk 0:02:56.3]} 6. Bg2 {[%clk 0:00:51.3]} 6... Bd6 {[%clk
0:02:55.7]} 7. Bf4 {[%clk 0:00:49]} 7... O-O {[%clk 0:02:53.9]} 8. Bxd6 {[%clk
0:00:44.7]} 8... Qxd6 {[%clk 0:02:53.7]} 9. O-O {[%clk 0:00:38]} 9... Nbd7
{[%clk 0:02:53.4]} 10. Qc2 {[%clk 0:00:20]} 10... Ne4 {[%clk 0:02:53.2]} 11. Ne1
{[%clk 0:00:18.9]} 11... Qe7 {[%clk 0:02:49.7]} 12. cxd5 {[%clk 0:00:17.8]}
12... exd5 {[%clk 0:02:49.2]} 13. Nd3 {[%clk 0:00:18.4]} 13... Ndf6 {[%clk
0:02:47.7]} 14. e3 {[%clk 0:00:17.9]} 14... Ng4 {[%clk 0:02:46.6]} 15. h3 {[%clk
0:00:16.1]} 15... Ngf6 {[%clk 0:02:46.3]} 16. Ne5 {[%clk 0:00:15.2]} 16... Bd7
{[%clk 0:02:45.4]} 17. Kh2 {[%clk 0:00:14.9]} 17... Be8 {[%clk 0:02:44.6]} 18.
f3 {[%clk 0:00:14.9]} 18... Nd6 {[%clk 0:02:43.5]} 19. Rae1 {[%clk 0:00:13.3]}
19... Nd7 {[%clk 0:02:43.3]} 20. f4 {[%clk 0:00:12.4]} 20... Ne4 {[%clk
0:02:43.4]} 21. Nxe4 {[%clk 0:00:11.9]} 21... fxe4 {[%clk 0:02:43.2]} 22. a3
{[%clk 0:00:11.8]} 22... g5 {[%clk 0:02:19.2]} 23. Nxd7 {[%clk 0:00:08.9]} 23...
Bxd7 {[%clk 0:02:17.3]} 24. fxg5 {[%clk 0:00:09.8]} 24... Qxg5 {[%clk
0:02:16.1]} 25. Rf4 {[%clk 0:00:10.3]} 25... Rxf4 {[%clk 0:02:12.2]} 26. gxf4
{[%clk 0:00:11.2]} 26... Qh4 {[%clk 0:02:08.2]} 27. Rg1 {[%clk 0:00:12.1]} 27...
Kf7 {[%clk 0:02:05.3]} 28. Qc5 {[%clk 0:00:11.5]} 28... Rg8 {[%clk 0:02:01.7]}
29. Qd6 {[%clk 0:00:11.7]} 29... Qg3+ {[%clk 0:02:01]} 30. Kh1 {[%clk
0:00:11.9]} 30... Bxh3 {[%clk 0:01:59.2]} 31. Qc7+ {[%clk 0:00:10.5]} 31... Kf6
{[%clk 0:01:55.4]} 32. Qe5+ {[%clk 0:00:10.4]} 32... Kf7 {[%clk 0:01:52]} 33.
Qh5+ {[%clk 0:00:10.7]} 33... Kf8 {[%clk 0:01:47.8]} 34. Qxh3 {[%clk 0:00:11.5]}
34... Qxh3+ {[%clk 0:01:46]} 35. Bxh3 {[%clk 0:00:12.4]} 35... Rxg1+ {[%clk
0:01:45.5]} 36. Kxg1 {[%clk 0:00:13.3]} 1-0

[Event "*** Titled Tuesday Blitz"]
[Site "Chess.com"]
[Date "2020.04.14"]
[Round "3"]
[White "Igor_Lysyj"]
[Black "lupta_robin"]
[Result "1-0"]
[WhiteElo "2811"]
[BlackElo "2480"]
[TimeControl "180+1"]
[EndTime "10:26:33 PDT"]
[Termination "Igor_Lysyj won by resignation"]

1. d4 {[%clk 0:02:57.8]} 1... g6 {[%clk 0:02:38.3]} 2. c4 {[%clk 0:02:57.1]}
2... Nf6 {[%clk 0:02:38.3]} 3. Nc3 {[%clk 0:02:56.5]} 3... d5 {[%clk 0:02:38.8]}
4. cxd5 {[%clk 0:02:55.9]} 4... Nxd5 {[%clk 0:02:38.8]} 5. e4 {[%clk 0:02:56.1]}
5... Nxc3 {[%clk 0:02:39]} 6. bxc3 {[%clk 0:02:56.4]} 6... c5 {[%clk 0:02:37.4]}
7. Bg5 {[%clk 0:02:54.7]} 7... Bg7 {[%clk 0:02:37]} 8. Rc1 {[%clk 0:02:54.1]}
8... O-O {[%clk 0:02:29.2]} 9. Nf3 {[%clk 0:02:53.2]} 9... Qc7 {[%clk
0:02:17.4]} 10. d5 {[%clk 0:02:50.3]} 10... Bg4 {[%clk 0:02:04.7]} 11. Be2
{[%clk 0:02:49.8]} 11... e6 {[%clk 0:01:54.2]} 12. O-O {[%clk 0:02:44.6]} 12...
exd5 {[%clk 0:01:52.8]} 13. exd5 {[%clk 0:02:44.3]} 13... Nd7 {[%clk 0:01:40.8]}
14. d6 {[%clk 0:02:39.6]} 14... Qc6 {[%clk 0:01:33.9]} 15. h3 {[%clk 0:02:38]}
15... Be6 {[%clk 0:01:32.6]} 16. Be7 {[%clk 0:02:35.2]} 16... Rfe8 {[%clk
0:01:31.6]} 17. Ng5 {[%clk 0:02:34.5]} 17... Bd5 {[%clk 0:01:15.1]} 18. Bb5
{[%clk 0:02:32.1]} 18... Qxb5 {[%clk 0:01:06.3]} 19. Qxd5 {[%clk 0:02:31.1]}
19... Ne5 {[%clk 0:01:05.1]} 20. Rb1 {[%clk 0:01:51.8]} 20... Qc6 {[%clk
0:00:59]} 21. Rfd1 {[%clk 0:01:51.3]} 21... Qxd5 {[%clk 0:00:55]} 22. Rxd5
{[%clk 0:01:50.6]} 22... Nc6 {[%clk 0:00:20]} 23. Rxb7 {[%clk 0:01:49.3]} 23...
Bxc3 {[%clk 0:00:20]} 24. Rxc5 {[%clk 0:01:41.7]} 24... Nxe7 {[%clk 0:00:10.7]}
25. Rxc3 {[%clk 0:01:41.3]} 25... Nf5 {[%clk 0:00:09.2]} 26. Nxf7 {[%clk
0:01:37.1]} 26... Rf8 {[%clk 0:00:08.3]} 27. Rcc7 {[%clk 0:01:34.9]} 1-0

[Event "*** Titled Tuesday Blitz"]
[Site "Chess.com"]
[Date "2020.04.14"]
[Round "3"]
[White "Charlottemillard17"]
[Black "krasavetc"]
[Result "0-1"]
[WhiteElo "1375"]
[BlackElo "2499"]
[TimeControl "180+1"]
[EndTime "10:26:40 PDT"]
[Termination "krasavetc won by checkmate"]

1. e4 {[%clk 0:03:00.9]} 1... c5 {[%clk 0:02:58.4]} 2. c3 {[%clk 0:03:00]} 2...
d6 {[%clk 0:02:56.1]} 3. d4 {[%clk 0:02:59.3]} 3... cxd4 {[%clk 0:02:51.6]} 4.
cxd4 {[%clk 0:02:59.1]} 4... Nf6 {[%clk 0:02:52.1]} 5. Nc3 {[%clk 0:02:57.8]}
5... e6 {[%clk 0:02:52.6]} 6. Bc4 {[%clk 0:02:54.9]} 6... Be7 {[%clk 0:02:49.7]}
7. Nf3 {[%clk 0:02:51.5]} 7... O-O {[%clk 0:02:49.6]} 8. O-O {[%clk 0:02:49.8]}
8... Nxe4 {[%clk 0:02:49.2]} 9. Nxe4 {[%clk 0:02:31.8]} 9... d5 {[%clk
0:02:49.3]} 10. Bxd5 {[%clk 0:02:26.5]} 10... exd5 {[%clk 0:02:48.7]} 11. Ng3
{[%clk 0:02:24.7]} 11... Nc6 {[%clk 0:02:47.5]} 12. Re1 {[%clk 0:02:18.6]} 12...
Bg4 {[%clk 0:02:47]} 13. h3 {[%clk 0:02:16.6]} 13... Bxf3 {[%clk 0:02:46.4]} 14.
Qxf3 {[%clk 0:02:12.3]} 14... Nxd4 {[%clk 0:02:46.1]} 15. Qd3 {[%clk 0:02:10.1]}
15... Bf6 {[%clk 0:02:43.9]} 16. Be3 {[%clk 0:02:03.6]} 16... Nc6 {[%clk
0:02:43.9]} 17. Bc5 {[%clk 0:02:00.4]} 17... Re8 {[%clk 0:02:41.4]} 18. Nh5
{[%clk 0:01:48.3]} 18... Bxb2 {[%clk 0:02:21.7]} 19. Rxe8+ {[%clk 0:01:36.3]}
19... Qxe8 {[%clk 0:02:20.4]} 20. Rb1 {[%clk 0:01:36.5]} 20... Qe5 {[%clk
0:02:12.9]} 21. Qf3 {[%clk 0:00:45.2]} 21... g6 {[%clk 0:02:06.4]} 22. Nf4
{[%clk 0:00:35.7]} 22... Bd4 {[%clk 0:02:03.4]} 23. Bxd4 {[%clk 0:00:25.8]}
23... Nxd4 {[%clk 0:02:04.3]} 24. Qg3 {[%clk 0:00:20]} 24... Qxf4 {[%clk
0:02:04.1]} 25. Qd3 {[%clk 0:00:15.9]} 25... Re8 {[%clk 0:01:58.4]} 26. g3
{[%clk 0:00:10]} 26... Qe4 {[%clk 0:01:54.1]} 27. Qc3 {[%clk 0:00:09]} 27...
Ne2+ {[%clk 0:01:53.5]} 28. Kh2 {[%clk 0:00:07.7]} 28... Nxc3 {[%clk 0:01:54.4]}
29. Rxb7 {[%clk 0:00:07]} 29... Qf3 {[%clk 0:01:54]} 30. Rxa7 {[%clk 0:00:05.8]}
30... Qxf2+ {[%clk 0:01:53.6]} 31. Kh1 {[%clk 0:00:05.2]} 31... Re1# {[%clk
0:01:54.5]} 0-1

[Event "*** Titled Tuesday Blitz"]
[Site "Chess.com"]
[Date "2020.04.14"]
[Round "3"]
[White "stoleriu"]
[Black "exoticprincess"]
[Result "0-1"]
[WhiteElo "2470"]
[BlackElo "2784"]
[TimeControl "180+1"]
[EndTime "10:26:41 PDT"]
[Termination "exoticprincess won by resignation"]

1. e4 {[%clk 0:03:00.9]} 1... c6 {[%clk 0:02:59.9]} 2. Nc3 {[%clk 0:02:56.7]}
2... d5 {[%clk 0:03:00.8]} 3. d4 {[%clk 0:02:57.1]} 3... dxe4 {[%clk 0:03:00.7]}
4. Nxe4 {[%clk 0:02:58]} 4... Nf6 {[%clk 0:03:00.9]} 5. Nxf6+ {[%clk 0:02:58.5]}
5... exf6 {[%clk 0:03:01.8]} 6. Bc4 {[%clk 0:02:59]} 6... Bd6 {[%clk 0:03:02]}
7. Qe2+ {[%clk 0:02:59.4]} 7... Kf8 {[%clk 0:03:00.1]} 8. h4 {[%clk 0:02:46.9]}
8... h5 {[%clk 0:03:00]} 9. Be3 {[%clk 0:02:39.6]} 9... g6 {[%clk 0:02:53.6]}
10. O-O-O {[%clk 0:02:31.4]} 10... Kg7 {[%clk 0:02:53.8]} 11. f3 {[%clk
0:02:31.8]} 11... Nd7 {[%clk 0:02:52.5]} 12. g4 {[%clk 0:02:29.8]} 12... Nb6
{[%clk 0:02:52.7]} 13. Bb3 {[%clk 0:02:27.7]} 13... Nd5 {[%clk 0:02:52.5]} 14.
Bd2 {[%clk 0:02:12.2]} 14... Nf4 {[%clk 0:02:47.7]} 15. Bxf4 {[%clk 0:02:06.4]}
15... Bxf4+ {[%clk 0:02:48.6]} 16. Kb1 {[%clk 0:02:07]} 16... a5 {[%clk
0:02:46.7]} 17. a4 {[%clk 0:02:05.6]} 17... b5 {[%clk 0:02:45.9]} 18. Nh3 {[%clk
0:01:49.1]} 18... Bd6 {[%clk 0:02:46]} 19. Nf2 {[%clk 0:01:48.6]} 19... f5
{[%clk 0:02:34.5]} 20. g5 {[%clk 0:01:42.5]} 20... Rb8 {[%clk 0:02:33]} 21. Nd3
{[%clk 0:01:29.7]} 21... Qb6 {[%clk 0:02:28.7]} 22. Ne5 {[%clk 0:01:01.9]} 22...
Rf8 {[%clk 0:02:27.9]} 23. Rhe1 {[%clk 0:00:25.5]} 23... bxa4 {[%clk 0:02:09.5]}
24. Nc4 {[%clk 0:00:25.6]} 24... Ba6 {[%clk 0:02:09.7]} 25. Nxb6 {[%clk
0:00:17]} 25... Bxe2 {[%clk 0:02:09.7]} 26. Rxe2 {[%clk 0:00:16.6]} 26... axb3
{[%clk 0:02:09.8]} 27. Nd7 {[%clk 0:00:16.7]} 27... Rbe8 {[%clk 0:02:10]} 28.
Rde1 {[%clk 0:00:09.1]} 28... Rxe2 {[%clk 0:02:10]} 29. Rxe2 {[%clk 0:00:10]}
29... Bg3 {[%clk 0:02:10.6]} 30. cxb3 {[%clk 0:00:06.5]} 30... Bxh4 {[%clk
0:02:10.9]} 31. Rc2 {[%clk 0:00:03.6]} 31... Rd8 {[%clk 0:02:10.3]} 32. Ne5
{[%clk 0:00:02.4]} 32... Rxd4 {[%clk 0:02:10.8]} 33. Rxc6 {[%clk 0:00:02.8]}
33... Bxg5 {[%clk 0:02:10.2]} 34. Rc7 {[%clk 0:00:03.2]} 34... Rd1+ {[%clk
0:02:08.2]} 35. Ka2 {[%clk 0:00:02.5]} 35... h4 {[%clk 0:02:08.2]} 36. Rxf7+
{[%clk 0:00:02.6]} 36... Kh6 {[%clk 0:02:08]} 37. Rf8 {[%clk 0:00:02]} 37... Bf4
{[%clk 0:02:04.8]} 38. Rh8+ {[%clk 0:00:01.3]} 38... Kg7 {[%clk 0:02:04.9]} 39.
Rh5 {[%clk 0:00:01.4]} 0-1

[Event "*** Titled Tuesday Blitz"]
[Site "Chess.com"]
[Date "2020.04.14"]
[Round "3"]
[White "Shahinyan_ChessMood"]
[Black "poliplaza"]
[Result "1-0"]
[WhiteElo "2677"]
[BlackElo "2373"]
[TimeControl "180+1"]
[EndTime "10:26:42 PDT"]
[Termination "Shahinyan_ChessMood won by checkmate"]

1. e4 {[%clk 0:03:00.9]} 1... c5 {[%clk 0:03:00]} 2. Nc3 {[%clk 0:03:00.4]} 2...
e6 {[%clk 0:03:00]} 3. g3 {[%clk 0:03:01.3]} 3... Nc6 {[%clk 0:03:00.3]} 4. Bg2
{[%clk 0:03:01.7]} 4... Nf6 {[%clk 0:03:00.6]} 5. d3 {[%clk 0:03:02.3]} 5... Be7
{[%clk 0:03:00]} 6. f4 {[%clk 0:03:01.3]} 6... d5 {[%clk 0:02:59.5]} 7. e5
{[%clk 0:03:01.3]} 7... Nd7 {[%clk 0:02:59.9]} 8. Nf3 {[%clk 0:03:01.8]} 8... b5
{[%clk 0:02:58.7]} 9. O-O {[%clk 0:02:57.1]} 9... Rb8 {[%clk 0:02:56.2]} 10. Ne2
{[%clk 0:02:54.3]} 10... a5 {[%clk 0:02:53.2]} 11. g4 {[%clk 0:02:50.6]} 11...
b4 {[%clk 0:02:50]} 12. Qe1 {[%clk 0:02:42]} 12... Ba6 {[%clk 0:02:44.8]} 13. f5
{[%clk 0:02:32.5]} 13... O-O {[%clk 0:02:39.5]} 14. Nf4 {[%clk 0:02:29.6]} 14...
exf5 {[%clk 0:02:10]} 15. gxf5 {[%clk 0:02:24.9]} 15... Nb6 {[%clk 0:02:07.1]}
16. Qg3 {[%clk 0:02:17.7]} 16... Kh8 {[%clk 0:01:56]} 17. Nh5 {[%clk 0:02:12]}
17... Rg8 {[%clk 0:01:50.5]} 18. Ng5 {[%clk 0:02:05.5]} 18... Nxe5 {[%clk
0:01:24.3]} 19. Nxh7 {[%clk 0:01:19.3]} 19... Kxh7 {[%clk 0:01:15.4]} 20. Qh3
{[%clk 0:01:05.9]} 20... Bh4 {[%clk 0:01:00.4]} 21. Rf4 {[%clk 0:01:04.6]} 21...
Ng6 {[%clk 0:00:23.8]} 22. fxg6+ {[%clk 0:01:01.5]} 22... fxg6 {[%clk
0:00:24.7]} 23. Rxh4 {[%clk 0:01:01.9]} 23... gxh5 {[%clk 0:00:25]} 24. Rxh5+
{[%clk 0:01:01.2]} 24... Kg6 {[%clk 0:00:25.3]} 25. Qf5# {[%clk 0:01:02.1]} 1-0

[Event "*** Titled Tuesday Blitz"]
[Site "Chess.com"]
[Date "2020.04.14"]
[Round "3"]
[White "cassoulet"]
[Black "xberli"]
[Result "1-0"]
[WhiteElo "2708"]
[BlackElo "2440"]
[TimeControl "180+1"]
[EndTime "10:26:44 PDT"]
[Termination "cassoulet won by resignation"]

1. e4 {[%clk 0:03:00.9]} 1... c5 {[%clk 0:02:56.3]} 2. Nf3 {[%clk 0:03:00]} 2...
d6 {[%clk 0:02:56.5]} 3. d4 {[%clk 0:02:59.5]} 3... cxd4 {[%clk 0:02:57.4]} 4.
Nxd4 {[%clk 0:03:00.1]} 4... Nf6 {[%clk 0:02:57.9]} 5. Nc3 {[%clk 0:03:00.4]}
5... a6 {[%clk 0:02:58.3]} 6. g3 {[%clk 0:02:59.6]} 6... e5 {[%clk 0:02:55.5]}
7. Nde2 {[%clk 0:02:58.9]} 7... Be7 {[%clk 0:02:55.6]} 8. Bg2 {[%clk 0:02:59.2]}
8... O-O {[%clk 0:02:56]} 9. O-O {[%clk 0:02:59.6]} 9... Be6 {[%clk 0:02:52.1]}
10. h3 {[%clk 0:02:59.8]} 10... Nbd7 {[%clk 0:02:51.7]} 11. g4 {[%clk
0:03:00.3]} 11... Rc8 {[%clk 0:02:51.6]} 12. Ng3 {[%clk 0:03:00.5]} 12... b5
{[%clk 0:02:48.7]} 13. a3 {[%clk 0:02:59.7]} 13... Nb6 {[%clk 0:02:47.7]} 14. g5
{[%clk 0:02:51.5]} 14... Nfd7 {[%clk 0:02:40.4]} 15. f4 {[%clk 0:02:51.9]} 15...
exf4 {[%clk 0:02:38.2]} 16. Bxf4 {[%clk 0:02:52.8]} 16... Bxg5 {[%clk
0:02:35.1]} 17. Bxd6 {[%clk 0:02:50]} 17... Nc4 {[%clk 0:02:22]} 18. Bxf8 {[%clk
0:02:47.3]} 18... Qxf8 {[%clk 0:02:22.1]} 19. Nd5 {[%clk 0:02:29.9]} 19... Nde5
{[%clk 0:01:57.8]} 20. b3 {[%clk 0:02:23.9]} 20... Ne3 {[%clk 0:01:54.3]} 21.
Nxe3 {[%clk 0:02:21.9]} 21... Bxe3+ {[%clk 0:01:55.2]} 22. Kh1 {[%clk
0:02:20.6]} 22... Qc5 {[%clk 0:01:52.4]} 23. Nf5 {[%clk 0:02:19.4]} 23... Bg5
{[%clk 0:01:45.1]} 24. Qd4 {[%clk 0:01:55.4]} 24... Qc7 {[%clk 0:01:38.3]} 25.
Rad1 {[%clk 0:01:33.4]} 25... h6 {[%clk 0:01:29.6]} 26. Nd6 {[%clk 0:01:21.6]}
26... Nc6 {[%clk 0:01:20.9]} 27. Qc3 {[%clk 0:01:19.4]} 27... Bf6 {[%clk
0:01:01.3]} 28. Rxf6 {[%clk 0:01:16.7]} 28... gxf6 {[%clk 0:01:01.6]} 29. Nxc8
{[%clk 0:01:14.7]} 29... Qxc8 {[%clk 0:00:57.6]} 30. e5 {[%clk 0:01:08.4]} 30...
Ne7 {[%clk 0:00:53.6]} 31. Qxc8+ {[%clk 0:01:04.6]} 31... Nxc8 {[%clk
0:00:54.5]} 32. exf6 {[%clk 0:01:03]} 32... h5 {[%clk 0:00:49.1]} 33. Rd8+
{[%clk 0:00:58.6]} 33... Kh7 {[%clk 0:00:47.2]} 34. Be4+ {[%clk 0:00:58.7]}
34... Kh6 {[%clk 0:00:47.1]} 35. h4 {[%clk 0:00:59.2]} 1-0

[Event "*** Titled Tuesday Blitz"]
[Site "Chess.com"]
[Date "2020.04.14"]
[Round "3"]
[White "ChessWarrior7197"]
[Black "stanyga"]
[Result "1-0"]
[WhiteElo "2912"]
[BlackElo "2666"]
[TimeControl "180+1"]
[EndTime "10:26:45 PDT"]
[Termination "ChessWarrior7197 won by resignation"]

1. e4 {[%clk 0:03:00.9]} 1... g6 {[%clk 0:02:59.4]} 2. d4 {[%clk 0:03:00.3]}
2... Bg7 {[%clk 0:02:59.7]} 3. Nf3 {[%clk 0:03:00.6]} 3... d6 {[%clk 0:02:58.8]}
4. Be2 {[%clk 0:03:00.4]} 4... Nf6 {[%clk 0:02:57.7]} 5. Nc3 {[%clk 0:03:00.6]}
5... c6 {[%clk 0:02:56.3]} 6. O-O {[%clk 0:03:00.5]} 6... O-O {[%clk 0:02:55.1]}
7. a4 {[%clk 0:02:59.9]} 7... a5 {[%clk 0:02:54.2]} 8. h3 {[%clk 0:02:57.6]}
8... Na6 {[%clk 0:02:54.1]} 9. Be3 {[%clk 0:02:54.8]} 9... Nb4 {[%clk 0:02:54]}
10. Nd2 {[%clk 0:02:54.8]} 10... e5 {[%clk 0:02:52.4]} 11. dxe5 {[%clk
0:02:54.1]} 11... dxe5 {[%clk 0:02:50.7]} 12. Nc4 {[%clk 0:02:54.7]} 12... Qxd1
{[%clk 0:02:49.7]} 13. Raxd1 {[%clk 0:02:53.4]} 13... Nxc2 {[%clk 0:02:49]} 14.
Bc5 {[%clk 0:02:53.4]} 14... Re8 {[%clk 0:02:36.7]} 15. Nb6 {[%clk 0:02:53.2]}
15... Rb8 {[%clk 0:02:18.2]} 16. Bd6 {[%clk 0:02:52.8]} 16... Be6 {[%clk
0:02:18]} 17. Bxb8 {[%clk 0:02:52.6]} 17... Rxb8 {[%clk 0:02:18.6]} 18. Bc4
{[%clk 0:02:51.3]} 18... Bxc4 {[%clk 0:01:53.7]} 19. Nxc4 {[%clk 0:02:52.2]}
19... Nd4 {[%clk 0:01:46.2]} 20. Nxe5 {[%clk 0:02:45.3]} 20... Nxe4 {[%clk
0:01:45.8]} 21. Nxc6 {[%clk 0:02:21.3]} 21... bxc6 {[%clk 0:01:29.9]} 22. Nxe4
{[%clk 0:02:21.1]} 22... f5 {[%clk 0:01:23]} 23. Nd6 {[%clk 0:02:11.2]} 23...
Rxb2 {[%clk 0:00:54.9]} 24. Rb1 {[%clk 0:02:10.7]} 24... Ne2+ {[%clk 0:00:51.5]}
25. Kh1 {[%clk 0:02:09.6]} 25... Rxb1 {[%clk 0:00:48.5]} 26. Rxb1 {[%clk
0:02:10.5]} 26... Nc3 {[%clk 0:00:48.7]} 27. Rc1 {[%clk 0:01:50.4]} 27... Kf8
{[%clk 0:00:44.3]} 28. Nb7 {[%clk 0:01:47.7]} 28... Nxa4 {[%clk 0:00:43.4]} 29.
Rxc6 {[%clk 0:01:47.4]} 29... Nc3 {[%clk 0:00:35.5]} 30. Rc8+ {[%clk 0:01:42.3]}
30... Kf7 {[%clk 0:00:33.1]} 31. Rc7+ {[%clk 0:01:42.4]} 31... Kf8 {[%clk
0:00:32.5]} 32. Nc5 {[%clk 0:01:28.8]} 32... Be5 {[%clk 0:00:27.5]} 33. Nd7+
{[%clk 0:01:28.7]} 33... Ke7 {[%clk 0:00:26]} 34. Nxe5+ {[%clk 0:01:28.8]} 34...
Kd6 {[%clk 0:00:26.8]} 35. Rxc3 {[%clk 0:01:29.5]} 1-0